[Event "Titled Tuesday Blitz January 10 Early 2023"]
[White "Gutkin, Ilya"]
[Black "Piesik, Piotr"]
[WhiteFideId "16203470"]
[BlackFideId "1136194"]
[WhiteElo "2273"]
[BlackElo "2426"]
[Result "0-1"]
[Round "06"]
[TimeControl "180+2"]
[Date "2023.01.10"]
[WhiteClock "0:00:01"]
[BlackClock "0:01:30"]

1. Nf3 {[%clk 0:03:00]}  g6 {[%clk 0:03:00]} 2. e4 {[%clk 0:03:00]}  Bg7 {[%clk 0:03:00]} 3. d4 {[%clk 0:03:00]}  c6 {[%clk 0:03:01]} 4. Nc3 {[%clk 0:02:57]}  d6 {[%clk 0:03:01]} 5. a4 {[%clk 0:02:53]}  Nf6 {[%clk 0:03:01]} 6. h3 {[%clk 0:02:50]}  O-O {[%clk 0:03:01]} 7. Bf4 {[%clk 0:02:46]}  Nbd7 {[%clk 0:03:00]} 8. Qd2 {[%clk 0:02:46]}  Nh5 {[%clk 0:02:58]} 9. Bh6 {[%clk 0:02:43]}  e5 {[%clk 0:02:58]} 10. dxe5 {[%clk 0:02:32]}  Nxe5 {[%clk 0:02:52]} 11. Nxe5 {[%clk 0:02:31]}  dxe5 {[%clk 0:02:51]} 12. Qxd8 {[%clk 0:02:10]}  Rxd8 {[%clk 0:02:52]} 13. Be3 {[%clk 0:02:06]}  Be6 {[%clk 0:02:51]} 14. g3 {[%clk 0:02:04]}  Bf8 {[%clk 0:02:48]} 15. Be2 {[%clk 0:02:03]}  Nf6 {[%clk 0:02:47]} 16. f3 {[%clk 0:01:23]}  Bb4 {[%clk 0:02:42]} 17. Kf2 {[%clk 0:01:23]}  a5 {[%clk 0:02:39]} 18. Rad1 {[%clk 0:01:19]}  Nd7 {[%clk 0:02:34]} 19. Nb1 {[%clk 0:01:06]}  Bc5 {[%clk 0:02:33]} 20. Nd2 {[%clk 0:01:00]}  Bxe3+ {[%clk 0:02:32]} 21. Kxe3 {[%clk 0:01:01]}  Nb6 {[%clk 0:02:29]} 22. b3 {[%clk 0:01:01]}  Kf8 {[%clk 0:02:27]} 23. h4 {[%clk 0:00:58]}  Ke7 {[%clk 0:02:27]} 24. h5 {[%clk 0:00:58]}  g5 {[%clk 0:02:22]} 25. Kf2 {[%clk 0:00:45]}  Rd4 {[%clk 0:02:19]} 26. Nf1 {[%clk 0:00:45]}  Rxd1 {[%clk 0:02:17]} 27. Bxd1 {[%clk 0:00:45]}  Rd8 {[%clk 0:02:18]} 28. Ne3 {[%clk 0:00:40]}  Kd6 {[%clk 0:02:13]} 29. Be2 {[%clk 0:00:39]}  Kc5 {[%clk 0:02:13]} 30. Rd1 {[%clk 0:00:21]}  Rxd1 {[%clk 0:02:12]} 31. Nxd1 {[%clk 0:00:22]}  Kd4 {[%clk 0:02:07]} 32. Ke1 {[%clk 0:00:19]}  g4 {[%clk 0:02:01]} 33. Kd2 {[%clk 0:00:12]}  gxf3 {[%clk 0:02:00]} 34. Bxf3 {[%clk 0:00:13]}  h6 {[%clk 0:01:58]} 35. c3+ {[%clk 0:00:10]}  Kc5 {[%clk 0:01:58]} 36. Kc2 {[%clk 0:00:10]}  Nd7 {[%clk 0:01:55]} 37. Ne3 {[%clk 0:00:09]}  Nf6 {[%clk 0:01:52]} 38. Kb2 {[%clk 0:00:06]}  b5 {[%clk 0:01:50]} 39. axb5 {[%clk 0:00:06]}  cxb5 {[%clk 0:01:51]} 40. Ka3 {[%clk 0:00:05]}  b4+ {[%clk 0:01:51]} 41. cxb4+ {[%clk 0:00:04]}  axb4+ {[%clk 0:01:52]} 42. Ka4 {[%clk 0:00:03]}  Nd7 {[%clk 0:01:37]} 43. Bg4 {[%clk 0:00:02]}  Nb6+ {[%clk 0:01:35]} 44. Ka5 {[%clk 0:00:01]}  Bxb3 {[%clk 0:01:35]} 45. Nf5 {[%clk 0:00:01]}  Nc4+ {[%clk 0:01:30]} 0-1


[Site "https://www.chess.com"]

[Event "Titled Tuesday Blitz January 10 Early 2023"]
[White "Sovetbekova, Nurai"]
[Black "Jakubowski, Krzysztof"]
[WhiteFideId "13801910"]
[BlackFideId "1112848"]
[WhiteElo "1764"]
[BlackElo "2486"]
[Result "1-0"]
[Round "06"]
[TimeControl "180+2"]
[Date "2023.01.10"]
[WhiteClock "0:00:29"]
[BlackClock "0:00:01"]

1. d4 {[%clk 0:03:00]}  Nf6 {[%clk 0:02:59]} 2. c4 {[%clk 0:03:00]}  e6 {[%clk 0:02:58]} 3. g3 {[%clk 0:02:59]}  d5 {[%clk 0:02:57]} 4. Bg2 {[%clk 0:02:59]}  Bb4+ {[%clk 0:02:57]} 5. Nd2 {[%clk 0:02:58]}  O-O {[%clk 0:02:56]} 6. Nf3 {[%clk 0:02:57]}  dxc4 {[%clk 0:02:55]} 7. Qc2 {[%clk 0:02:56]}  a5 {[%clk 0:02:52]} 8. Qxc4 {[%clk 0:02:55]}  b6 {[%clk 0:02:51]} 9. O-O {[%clk 0:02:54]}  Ba6 {[%clk 0:02:50]} 10. Qc2 {[%clk 0:02:52]}  Bxe2 {[%clk 0:02:48]} 11. Re1 {[%clk 0:02:48]}  Bxf3 {[%clk 0:02:35]} 12. Bxf3 {[%clk 0:02:45]}  Ra7 {[%clk 0:02:35]} 13. a3 {[%clk 0:02:37]}  Bxd2 {[%clk 0:02:32]} 14. Bxd2 {[%clk 0:02:35]}  Qxd4 {[%clk 0:02:31]} 15. Bc3 {[%clk 0:02:35]}  Qc5 {[%clk 0:02:27]} 16. b4 {[%clk 0:02:24]}  Qf5 {[%clk 0:02:22]} 17. Qxf5 {[%clk 0:02:09]}  exf5 {[%clk 0:02:22]} 18. Bxf6 {[%clk 0:02:08]}  gxf6 {[%clk 0:02:19]} 19. Rad1 {[%clk 0:02:04]}  axb4 {[%clk 0:02:10]} 20. axb4 {[%clk 0:02:03]}  Ra3 {[%clk 0:01:54]} 21. Kg2 {[%clk 0:01:59]}  Rb3 {[%clk 0:01:50]} 22. Rd4 {[%clk 0:01:52]}  Na6 {[%clk 0:01:47]} 23. Re7 {[%clk 0:01:45]}  Rxb4 {[%clk 0:01:39]} 24. Rdd7 {[%clk 0:01:45]}  c6 {[%clk 0:01:13]} 25. Bh5 {[%clk 0:01:29]}  Nc5 {[%clk 0:00:38]} 26. Ra7 {[%clk 0:00:59]}  Re4 {[%clk 0:00:31]} 27. Bxf7+ {[%clk 0:00:50]}  Kg7 {[%clk 0:00:29]} 28. Rec7 {[%clk 0:00:49]}  Kh6 {[%clk 0:00:25]} 29. Bd5 {[%clk 0:00:33]}  Rh8 {[%clk 0:00:07]} 30. Bxe4 {[%clk 0:00:33]}  Nxe4 {[%clk 0:00:08]} 31. Rxc6 {[%clk 0:00:32]}  Kg6 {[%clk 0:00:05]} 32. Rxb6 {[%clk 0:00:32]}  h5 {[%clk 0:00:04]} 33. h4 {[%clk 0:00:31]}  Rg8 {[%clk 0:00:02]} 34. Rbb7 {[%clk 0:00:29]}  Nd6 {[%clk 0:00:01]} 35. Rd7 {[%clk 0:00:29]} 1-0


[Site "https://www.chess.com"]

[Event "Titled Tuesday Blitz January 10 Early 2023"]
[White "Fabris, Alberto"]
[Black "Ashraf, Artin"]
[WhiteFideId "801348"]
[BlackFideId "22514805"]
[WhiteElo "2230"]
[BlackElo "2314"]
[Result "0-1"]
[Round "06"]
[TimeControl "180+2"]
[Date "2023.01.10"]
[WhiteClock "0:00:01"]
[BlackClock "0:00:25"]

1. e4 {[%clk 0:03:00]}  Nc6 {[%clk 0:02:57]} 2. d4 {[%clk 0:02:59]}  d5 {[%clk 0:02:57]} 3. Nc3 {[%clk 0:02:58]}  Nf6 {[%clk 0:02:48]} 4. e5 {[%clk 0:02:57]}  Ne4 {[%clk 0:02:48]} 5. Nxe4 {[%clk 0:02:53]}  dxe4 {[%clk 0:02:49]} 6. Be3 {[%clk 0:02:52]}  Bf5 {[%clk 0:02:41]} 7. Ne2 {[%clk 0:02:43]}  e6 {[%clk 0:02:36]} 8. Ng3 {[%clk 0:02:42]}  Bg6 {[%clk 0:02:36]} 9. h4 {[%clk 0:02:33]}  h6 {[%clk 0:02:28]} 10. h5 {[%clk 0:02:33]}  Bh7 {[%clk 0:02:27]} 11. c3 {[%clk 0:02:22]}  f5 {[%clk 0:02:09]} 12. exf6 {[%clk 0:02:19]}  Qxf6 {[%clk 0:02:09]} 13. Qb3 {[%clk 0:02:12]}  O-O-O {[%clk 0:02:07]} 14. O-O-O {[%clk 0:02:00]}  Bd6 {[%clk 0:02:04]} 15. Ne2 {[%clk 0:01:51]}  Ne7 {[%clk 0:01:30]} 16. Qc2 {[%clk 0:01:37]}  Nd5 {[%clk 0:01:27]} 17. Qd2 {[%clk 0:01:35]}  Rhf8 {[%clk 0:01:24]} 18. Kb1 {[%clk 0:01:33]}  Qxf2 {[%clk 0:01:17]} 19. Bxf2 {[%clk 0:01:26]}  e3+ {[%clk 0:01:17]} 20. Qd3 {[%clk 0:01:17]}  Bxd3+ {[%clk 0:01:15]} 21. Rxd3 {[%clk 0:01:17]}  Rxf2 {[%clk 0:01:14]} 22. c4 {[%clk 0:01:05]}  Rdf8 {[%clk 0:01:13]} 23. cxd5 {[%clk 0:01:00]}  Rxf1+ {[%clk 0:01:11]} 24. Rxf1 {[%clk 0:01:00]}  Rxf1+ {[%clk 0:01:12]} 25. Kc2 {[%clk 0:00:59]}  exd5 {[%clk 0:01:12]} 26. Rxe3 {[%clk 0:00:58]}  Kd7 {[%clk 0:01:12]} 27. Kd3 {[%clk 0:00:43]}  Rf2 {[%clk 0:00:56]} 28. b3 {[%clk 0:00:28]}  Rxg2 {[%clk 0:00:55]} 29. Rf3 {[%clk 0:00:24]}  Ke7 {[%clk 0:00:50]} 30. Re3+ {[%clk 0:00:20]}  Kf6 {[%clk 0:00:45]} 31. Re8 {[%clk 0:00:18]}  Kg5 {[%clk 0:00:41]} 32. Ra8 {[%clk 0:00:16]}  Kxh5 {[%clk 0:00:33]} 33. Rxa7 {[%clk 0:00:16]}  b6 {[%clk 0:00:33]} 34. Nc3 {[%clk 0:00:12]}  Rg3+ {[%clk 0:00:27]} 35. Kc2 {[%clk 0:00:11]}  Rg5 {[%clk 0:00:27]} 36. a4 {[%clk 0:00:05]}  Kg4 {[%clk 0:00:26]} 37. Nb5 {[%clk 0:00:04]}  h5 {[%clk 0:00:25]} 38. Nxd6 {[%clk 0:00:01]}  cxd6 {[%clk 0:00:25]} 39. Rb7 {[%clk 0:00:01]}  h4 {[%clk 0:00:25]} 40. Rxb6 {[%clk 0:00:01]}  h3 {[%clk 0:00:24]} 41. Rb8 {[%clk 0:00:01]}  h2 {[%clk 0:00:24]} 42. Rh8 {[%clk 0:00:01]}  Rh5 {[%clk 0:00:25]} 0-1


[Site "https://www.chess.com"]

[Event "Titled Tuesday Blitz January 10 Early 2023"]
[White "Ronka, Erik"]
[Black "Pranav, V"]
[WhiteFideId "505080"]
[BlackFideId "25060783"]
[WhiteElo "2276"]
[BlackElo "2597"]
[Result "0-1"]
[Round "06"]
[TimeControl "180+2"]
[Date "2023.01.10"]
[WhiteClock "0:00:01"]
[BlackClock "0:01:06"]

1. e4 {[%clk 0:03:00]}  e5 {[%clk 0:03:00]} 2. Nf3 {[%clk 0:02:58]}  Nc6 {[%clk 0:03:00]} 3. Bb5 {[%clk 0:02:59]}  a6 {[%clk 0:03:00]} 4. Ba4 {[%clk 0:02:59]}  d6 {[%clk 0:03:00]} 5. O-O {[%clk 0:02:56]}  Bd7 {[%clk 0:03:00]} 6. d4 {[%clk 0:02:55]}  exd4 {[%clk 0:02:57]} 7. Bxc6 {[%clk 0:02:52]}  bxc6 {[%clk 0:02:56]} 8. Qxd4 {[%clk 0:02:52]}  f6 {[%clk 0:02:51]} 9. c4 {[%clk 0:02:49]}  c5 {[%clk 0:02:48]} 10. Qe3 {[%clk 0:02:38]}  Ne7 {[%clk 0:02:45]} 11. Nc3 {[%clk 0:02:39]}  Nc6 {[%clk 0:02:43]} 12. Nd5 {[%clk 0:02:24]}  Be7 {[%clk 0:02:44]} 13. Bd2 {[%clk 0:02:17]}  O-O {[%clk 0:02:43]} 14. Bc3 {[%clk 0:02:17]}  Ne5 {[%clk 0:02:44]} 15. Nd2 {[%clk 0:02:07]}  c6 {[%clk 0:02:40]} 16. Nf4 {[%clk 0:02:07]}  Re8 {[%clk 0:02:40]} 17. Qg3 {[%clk 0:02:00]}  Bf8 {[%clk 0:02:37]} 18. Rad1 {[%clk 0:01:57]}  Qe7 {[%clk 0:02:37]} 19. Rfe1 {[%clk 0:01:57]}  Qf7 {[%clk 0:02:37]} 20. h3 {[%clk 0:01:56]}  Kh8 {[%clk 0:02:32]} 21. b3 {[%clk 0:01:51]}  a5 {[%clk 0:02:32]} 22. Ne2 {[%clk 0:01:44]}  a4 {[%clk 0:02:29]} 23. f4 {[%clk 0:01:38]}  Ng6 {[%clk 0:02:29]} 24. f5 {[%clk 0:01:31]}  Ne5 {[%clk 0:02:29]} 25. Nf4 {[%clk 0:01:31]}  axb3 {[%clk 0:02:28]} 26. axb3 {[%clk 0:01:31]}  Ra2 {[%clk 0:02:27]} 27. Nf3 {[%clk 0:01:22]}  Nxf3+ {[%clk 0:02:18]} 28. Qxf3 {[%clk 0:01:23]}  Kg8 {[%clk 0:02:18]} 29. Rd3 {[%clk 0:01:19]}  Ra3 {[%clk 0:02:10]} 30. Bb2 {[%clk 0:01:19]}  Ra2 {[%clk 0:02:10]} 31. Bc3 {[%clk 0:01:19]}  Bc8 {[%clk 0:02:04]} 32. g4 {[%clk 0:01:11]}  Bd7 {[%clk 0:01:47]} 33. h4 {[%clk 0:01:10]}  Rb8 {[%clk 0:01:46]} 34. g5 {[%clk 0:00:50]}  fxg5 {[%clk 0:01:45]} 35. hxg5 {[%clk 0:00:51]}  g6 {[%clk 0:01:46]} 36. f6 {[%clk 0:00:27]}  Rxb3 {[%clk 0:01:39]} 37. e5 {[%clk 0:00:26]}  dxe5 {[%clk 0:01:33]} 38. Bxe5 {[%clk 0:00:27]}  Rxd3 {[%clk 0:01:29]} 39. Qxd3 {[%clk 0:00:28]}  Bf5 {[%clk 0:01:29]} 40. Qb3 {[%clk 0:00:19]}  Ra8 {[%clk 0:01:27]} 41. Rd1 {[%clk 0:00:12]}  Re8 {[%clk 0:01:25]} 42. Qc3 {[%clk 0:00:11]}  h6 {[%clk 0:01:20]} 43. Bd6 {[%clk 0:00:02]}  hxg5 {[%clk 0:01:15]} 44. Ng2 {[%clk 0:00:02]}  Rd8 {[%clk 0:01:14]} 45. Bxf8 {[%clk 0:00:01]}  Rxd1+ {[%clk 0:01:15]} 46. Kf2 {[%clk 0:00:02]}  Qxf8 {[%clk 0:01:14]} 47. Ne3 {[%clk 0:00:02]}  Rd4 {[%clk 0:01:12]} 48. Qa5 {[%clk 0:00:02]}  Qxf6 {[%clk 0:01:12]} 49. Ke1 {[%clk 0:00:01]}  Qe5 {[%clk 0:01:06]} 0-1


[Site "https://www.chess.com"]

[Event "Titled Tuesday Blitz January 10 Early 2023"]
[White "Howell, David W L"]
[Black "Shohat, Yotam"]
[WhiteFideId "410608"]
[BlackFideId "2813955"]
[WhiteElo "2677"]
[BlackElo "2346"]
[Result "1-0"]
[Round "06"]
[TimeControl "180+2"]
[Date "2023.01.10"]
[WhiteClock "0:00:09"]
[BlackClock "0:00:01"]

1. e4 {[%clk 0:02:54]}  c5 {[%clk 0:03:00]} 2. Nf3 {[%clk 0:02:43]}  g6 {[%clk 0:02:58]} 3. Bc4 {[%clk 0:02:25]}  Bg7 {[%clk 0:02:44]} 4. O-O {[%clk 0:02:21]}  e6 {[%clk 0:02:43]} 5. d4 {[%clk 0:02:16]}  cxd4 {[%clk 0:02:36]} 6. Nxd4 {[%clk 0:02:17]}  a6 {[%clk 0:02:26]} 7. c3 {[%clk 0:01:41]}  Ne7 {[%clk 0:02:24]} 8. a4 {[%clk 0:01:37]}  O-O {[%clk 0:02:23]} 9. Na3 {[%clk 0:01:32]}  Nbc6 {[%clk 0:02:22]} 10. Nac2 {[%clk 0:01:29]}  d5 {[%clk 0:02:19]} 11. exd5 {[%clk 0:01:24]}  exd5 {[%clk 0:02:20]} 12. Ba2 {[%clk 0:01:19]}  Be6 {[%clk 0:02:15]} 13. Nxe6 {[%clk 0:01:08]}  fxe6 {[%clk 0:02:16]} 14. Re1 {[%clk 0:01:09]}  Qd6 {[%clk 0:01:58]} 15. Qe2 {[%clk 0:01:02]}  e5 {[%clk 0:01:25]} 16. Bg5 {[%clk 0:01:02]}  Bf6 {[%clk 0:01:14]} 17. Bh6 {[%clk 0:01:00]}  Bg7 {[%clk 0:01:12]} 18. Bg5 {[%clk 0:01:00]}  Bf6 {[%clk 0:01:13]} 19. Bd2 {[%clk 0:00:52]}  Kg7 {[%clk 0:01:05]} 20. Rad1 {[%clk 0:00:52]}  d4 {[%clk 0:00:55]} 21. cxd4 {[%clk 0:00:40]}  exd4 {[%clk 0:00:56]} 22. Qe6 {[%clk 0:00:35]}  Qxe6 {[%clk 0:00:51]} 23. Rxe6 {[%clk 0:00:36]}  Rad8 {[%clk 0:00:48]} 24. Ne1 {[%clk 0:00:29]}  d3 {[%clk 0:00:40]} 25. Re3 {[%clk 0:00:16]}  Bd4 {[%clk 0:00:36]} 26. Bc3 {[%clk 0:00:09]}  Nf5 {[%clk 0:00:19]} 27. Rexd3 {[%clk 0:00:08]}  Bxc3 {[%clk 0:00:14]} 28. Rxd8 {[%clk 0:00:08]}  Rxd8 {[%clk 0:00:10]} 29. Rxd8 {[%clk 0:00:08]}  Bxe1 {[%clk 0:00:09]} 30. Rd7+ {[%clk 0:00:09]}  Kf6 {[%clk 0:00:09]} 31. Rxb7 {[%clk 0:00:10]}  Nfd4 {[%clk 0:00:05]} 32. Bd5 {[%clk 0:00:08]}  Ke5 {[%clk 0:00:03]} 33. Bxc6 {[%clk 0:00:07]}  Nxc6 {[%clk 0:00:04]} 34. Rxh7 {[%clk 0:00:07]}  Kd4 {[%clk 0:00:02]} 35. Kf1 {[%clk 0:00:08]}  Bb4 {[%clk 0:00:02]} 36. Rg7 {[%clk 0:00:08]}  Kc4 {[%clk 0:00:01]} 37. Rxg6 {[%clk 0:00:08]}  Kc5 {[%clk 0:00:02]} 38. Ke2 {[%clk 0:00:07]}  Nd4+ {[%clk 0:00:02]} 39. Kd3 {[%clk 0:00:08]}  Nb3 {[%clk 0:00:02]} 40. Rg5+ {[%clk 0:00:08]}  Kb6 {[%clk 0:00:01]} 41. Kc4 {[%clk 0:00:09]} 1-0


[Site "https://www.chess.com"]

[Event "Titled Tuesday Blitz January 10 Early 2023"]
[White "Sai Krishna G V"]
[Black "Boder, Jan"]
[WhiteFideId "5028280"]
[BlackFideId "16243226"]
[WhiteElo "2384"]
[BlackElo "2294"]
[Result "1/2-1/2"]
[Round "06"]
[TimeControl "180+2"]
[Date "2023.01.10"]
[WhiteClock "0:00:46"]
[BlackClock "0:00:36"]

1. e4 {[%clk 0:03:00]}  c5 {[%clk 0:02:56]} 2. Nf3 {[%clk 0:03:00]}  Nc6 {[%clk 0:02:55]} 3. Nc3 {[%clk 0:03:00]}  g6 {[%clk 0:02:55]} 4. d4 {[%clk 0:02:59]}  cxd4 {[%clk 0:02:56]} 5. Nxd4 {[%clk 0:03:00]}  Bg7 {[%clk 0:02:56]} 6. Be3 {[%clk 0:03:01]}  Nf6 {[%clk 0:02:56]} 7. Bc4 {[%clk 0:03:01]}  O-O {[%clk 0:02:56]} 8. Bb3 {[%clk 0:03:00]}  a5 {[%clk 0:02:56]} 9. a4 {[%clk 0:02:40]}  Ng4 {[%clk 0:02:52]} 10. Qxg4 {[%clk 0:02:32]}  Nxd4 {[%clk 0:02:52]} 11. Bxd4 {[%clk 0:02:29]}  Bxd4 {[%clk 0:02:51]} 12. O-O-O {[%clk 0:02:22]}  Bxc3 {[%clk 0:02:51]} 13. bxc3 {[%clk 0:02:23]}  d6 {[%clk 0:02:52]} 14. Qg3 {[%clk 0:02:19]}  b5 {[%clk 0:02:44]} 15. axb5 {[%clk 0:02:17]}  a4 {[%clk 0:02:44]} 16. Ba2 {[%clk 0:02:17]}  Be6 {[%clk 0:02:45]} 17. Rd5 {[%clk 0:02:06]}  Bxd5 {[%clk 0:02:39]} 18. Bxd5 {[%clk 0:02:07]}  a3 {[%clk 0:02:25]} 19. c4 {[%clk 0:02:07]}  a2 {[%clk 0:02:17]} 20. Kb2 {[%clk 0:02:06]}  a1=Q+ {[%clk 0:02:08]} 21. Rxa1 {[%clk 0:02:04]}  Rxa1 {[%clk 0:02:09]} 22. Kxa1 {[%clk 0:02:05]}  e6 {[%clk 0:02:09]} 23. Bc6 {[%clk 0:02:01]}  Qa5+ {[%clk 0:02:09]} 24. Kb2 {[%clk 0:01:58]}  Qb4+ {[%clk 0:01:57]} 25. Qb3 {[%clk 0:01:58]}  Qc5 {[%clk 0:01:58]} 26. Qe3 {[%clk 0:01:57]}  Qxc4 {[%clk 0:01:53]} 27. Qc3 {[%clk 0:01:53]}  Qa4 {[%clk 0:01:08]} 28. b6 {[%clk 0:01:37]}  Qa6 {[%clk 0:01:07]} 29. b7 {[%clk 0:01:38]}  Rb8 {[%clk 0:01:07]} 30. f3 {[%clk 0:01:29]}  Qb6+ {[%clk 0:00:56]} 31. Kc1 {[%clk 0:01:25]}  Qg1+ {[%clk 0:00:56]} 32. Kb2 {[%clk 0:01:25]}  Qb6+ {[%clk 0:00:56]} 33. Kc1 {[%clk 0:01:25]}  Rxb7 {[%clk 0:00:53]} 34. Bxb7 {[%clk 0:01:24]}  Qxb7 {[%clk 0:00:54]} 35. Qd4 {[%clk 0:01:18]}  Qa6 {[%clk 0:00:53]} 36. Kb2 {[%clk 0:01:03]}  h5 {[%clk 0:00:53]} 37. h4 {[%clk 0:01:02]}  Qb5+ {[%clk 0:00:51]} 38. Kc3 {[%clk 0:00:59]}  Qa5+ {[%clk 0:00:46]} 39. Kb3 {[%clk 0:00:57]}  Qb5+ {[%clk 0:00:36]} 40. Kc3 {[%clk 0:00:51]}  Qa5+ {[%clk 0:00:36]} 41. Kb2 {[%clk 0:00:48]}  Qb5+ {[%clk 0:00:36]} 42. Kc3 {[%clk 0:00:46]} 1/2-1/2


[Site "https://www.chess.com"]

[Event "Titled Tuesday Blitz January 10 Early 2023"]
[White "Shubenkova, Veronika"]
[Black "Maksimenko, Viktor"]
[WhiteFideId "44124040"]
[BlackFideId "13710478"]
[WhiteElo "1960"]
[BlackElo "2196"]
[Result "0-1"]
[Round "06"]
[TimeControl "180+2"]
[Date "2023.01.10"]
[WhiteClock "0:01:29"]
[BlackClock "0:01:28"]

1. e4 {[%clk 0:03:00]}  e5 {[%clk 0:02:58]} 2. Nf3 {[%clk 0:03:00]}  Nc6 {[%clk 0:02:57]} 3. Bb5 {[%clk 0:03:00]}  a6 {[%clk 0:02:57]} 4. Bxc6 {[%clk 0:03:00]}  dxc6 {[%clk 0:02:56]} 5. O-O {[%clk 0:03:01]}  Qd6 {[%clk 0:02:56]} 6. b3 {[%clk 0:03:00]}  f6 {[%clk 0:02:53]} 7. Ba3 {[%clk 0:03:00]}  c5 {[%clk 0:02:40]} 8. d3 {[%clk 0:03:00]}  Be6 {[%clk 0:02:40]} 9. Nbd2 {[%clk 0:03:00]}  Qd7 {[%clk 0:02:39]} 10. Nc4 {[%clk 0:03:00]}  a5 {[%clk 0:02:38]} 11. Ne3 {[%clk 0:02:52]}  b6 {[%clk 0:02:38]} 12. c4 {[%clk 0:02:52]}  c6 {[%clk 0:02:37]} 13. Bb2 {[%clk 0:02:51]}  Ne7 {[%clk 0:02:36]} 14. a4 {[%clk 0:02:51]}  g5 {[%clk 0:02:23]} 15. Qe2 {[%clk 0:02:50]}  O-O-O {[%clk 0:02:21]} 16. Rad1 {[%clk 0:02:45]}  Ng6 {[%clk 0:02:19]} 17. Ne1 {[%clk 0:02:34]}  h5 {[%clk 0:02:18]} 18. Bc1 {[%clk 0:02:27]}  Kb7 {[%clk 0:02:16]} 19. N3c2 {[%clk 0:02:27]}  g4 {[%clk 0:02:09]} 20. f3 {[%clk 0:02:25]}  Be7 {[%clk 0:02:08]} 21. f4 {[%clk 0:02:24]}  exf4 {[%clk 0:01:54]} 22. Bxf4 {[%clk 0:02:24]}  f5 {[%clk 0:01:55]} 23. exf5 {[%clk 0:02:19]}  Bxf5 {[%clk 0:01:54]} 24. Be5 {[%clk 0:02:19]}  Rhe8 {[%clk 0:01:52]} 25. d4 {[%clk 0:02:17]}  cxd4 {[%clk 0:01:34]} 26. Nxd4 {[%clk 0:02:14]}  Bc5 {[%clk 0:01:34]} 27. Kh1 {[%clk 0:01:37]}  Rxe5 {[%clk 0:01:32]} 28. Nxf5 {[%clk 0:01:34]}  Rxe2 {[%clk 0:01:29]} 29. Rxd7+ {[%clk 0:01:33]}  Rxd7 {[%clk 0:01:30]} 30. Ng3 {[%clk 0:01:29]}  Re5 {[%clk 0:01:28]} 0-1


[Site "https://www.chess.com"]

[Event "Titled Tuesday Blitz January 10 Early 2023"]
[White "Tarasova, Viktoriya"]
[Black "Sourath Biswas"]
[WhiteFideId "4175840"]
[BlackFideId "35091484"]
[WhiteElo "2226"]
[BlackElo "2281"]
[Result "0-1"]
[Round "06"]
[TimeControl "180+2"]
[Date "2023.01.10"]
[WhiteClock "0:00:02"]
[BlackClock "0:00:02"]

1. d4 {[%clk 0:02:57]}  Nf6 {[%clk 0:02:58]} 2. c4 {[%clk 0:02:56]}  g6 {[%clk 0:02:58]} 3. Nc3 {[%clk 0:02:51]}  Bg7 {[%clk 0:02:54]} 4. e4 {[%clk 0:02:50]}  O-O {[%clk 0:02:54]} 5. h3 {[%clk 0:02:51]}  d6 {[%clk 0:02:38]} 6. Be3 {[%clk 0:02:51]}  e5 {[%clk 0:02:38]} 7. d5 {[%clk 0:02:51]}  Na6 {[%clk 0:02:39]} 8. g4 {[%clk 0:02:50]}  Nd7 {[%clk 0:02:38]} 9. Be2 {[%clk 0:02:45]}  f5 {[%clk 0:02:38]} 10. exf5 {[%clk 0:02:43]}  gxf5 {[%clk 0:02:39]} 11. gxf5 {[%clk 0:02:44]}  Ndc5 {[%clk 0:02:39]} 12. Nf3 {[%clk 0:02:07]}  Bxf5 {[%clk 0:02:35]} 13. a3 {[%clk 0:01:54]}  c6 {[%clk 0:02:09]} 14. Rg1 {[%clk 0:01:48]}  Kh8 {[%clk 0:02:09]} 15. Ng5 {[%clk 0:01:36]}  Qf6 {[%clk 0:02:01]} 16. b4 {[%clk 0:01:30]}  e4 {[%clk 0:02:01]} 17. Rc1 {[%clk 0:01:21]}  Nd3+ {[%clk 0:02:02]} 18. Bxd3 {[%clk 0:01:21]}  exd3 {[%clk 0:02:02]} 19. Ne6 {[%clk 0:01:05]}  Bxe6 {[%clk 0:01:16]} 20. dxe6 {[%clk 0:01:05]}  Qxe6 {[%clk 0:01:17]} 21. Qxd3 {[%clk 0:01:03]}  Rae8 {[%clk 0:01:17]} 22. h4 {[%clk 0:00:44]}  Qf6 {[%clk 0:01:05]} 23. Kd2 {[%clk 0:00:35]}  Bh6 {[%clk 0:00:26]} 24. Ne4 {[%clk 0:00:25]}  Bxe3+ {[%clk 0:00:15]} 25. fxe3 {[%clk 0:00:22]}  Qe5 {[%clk 0:00:11]} 26. Nc3 {[%clk 0:00:10]}  Rf2+ {[%clk 0:00:11]} 27. Ne2 {[%clk 0:00:11]}  Qb2+ {[%clk 0:00:10]} 28. Rc2 {[%clk 0:00:11]}  Qe5 {[%clk 0:00:10]} 29. h5 {[%clk 0:00:06]}  Nc7 {[%clk 0:00:10]} 30. Rg4 {[%clk 0:00:03]}  Qh2 {[%clk 0:00:03]} 31. Rd4 {[%clk 0:00:02]}  Ne6 {[%clk 0:00:03]} 32. Rxd6 {[%clk 0:00:02]}  Nf4 {[%clk 0:00:03]} 33. Qd4+ {[%clk 0:00:02]}  Kg8 {[%clk 0:00:02]} 0-1


[Site "https://www.chess.com"]

[Event "Titled Tuesday Blitz January 10 Early 2023"]
[White "Bozorov, Makhsum"]
[Black "Yelisieiev, Yevhenii"]
[WhiteFideId "14201330"]
[BlackFideId "14139642"]
[WhiteElo "2145"]
[BlackElo "2418"]
[Result "1/2-1/2"]
[Round "06"]
[TimeControl "180+2"]
[Date "2023.01.10"]
[WhiteClock "0:00:52"]
[BlackClock "0:00:07"]

1. d4 {[%clk 0:03:00]}  d6 {[%clk 0:02:57]} 2. Nf3 {[%clk 0:02:56]}  Nf6 {[%clk 0:02:55]} 3. c4 {[%clk 0:02:56]}  Nbd7 {[%clk 0:02:54]} 4. Nc3 {[%clk 0:02:54]}  e5 {[%clk 0:02:55]} 5. Bg5 {[%clk 0:02:53]}  Be7 {[%clk 0:02:54]} 6. e3 {[%clk 0:02:52]}  O-O {[%clk 0:02:52]} 7. Qc2 {[%clk 0:02:51]}  c6 {[%clk 0:02:51]} 8. Bd3 {[%clk 0:02:50]}  h6 {[%clk 0:02:51]} 9. Bxf6 {[%clk 0:02:49]}  Bxf6 {[%clk 0:02:48]} 10. O-O-O {[%clk 0:02:41]}  exd4 {[%clk 0:02:47]} 11. Nxd4 {[%clk 0:02:39]}  Nc5 {[%clk 0:02:44]} 12. Bf5 {[%clk 0:02:35]}  Qe7 {[%clk 0:02:18]} 13. Bxc8 {[%clk 0:02:34]}  Raxc8 {[%clk 0:02:11]} 14. Nf5 {[%clk 0:02:34]}  Qe6 {[%clk 0:02:00]} 15. Rxd6 {[%clk 0:02:19]}  Qxc4 {[%clk 0:02:00]} 16. Rxf6 {[%clk 0:02:12]}  Nd3+ {[%clk 0:01:17]} 17. Kb1 {[%clk 0:02:04]}  gxf6 {[%clk 0:01:14]} 18. Ne7+ {[%clk 0:02:03]}  Kg7 {[%clk 0:01:11]} 19. Nxc8 {[%clk 0:02:04]}  Rxc8 {[%clk 0:01:10]} 20. Rd1 {[%clk 0:02:00]}  Rd8 {[%clk 0:00:59]} 21. a3 {[%clk 0:01:34]}  b5 {[%clk 0:00:43]} 22. Ne2 {[%clk 0:01:28]}  Rd5 {[%clk 0:00:38]} 23. Nc3 {[%clk 0:00:54]}  Rd7 {[%clk 0:00:30]} 24. Ne2 {[%clk 0:00:53]}  Rd5 {[%clk 0:00:25]} 25. Nc3 {[%clk 0:00:52]}  Rd7 {[%clk 0:00:23]} 26. Ne2 {[%clk 0:00:52]}  Rd5 {[%clk 0:00:07]} 1/2-1/2


[Site "https://www.chess.com"]